bitfinex/quotes_BTCUSD_20211001
["timestamp","ask_amount","ask_price","bid_price","bid_amount"]
[1633121023115,0.131,47956.0,47955.0,0.958497]
[1633121023317,0.131,47956.0,47955.0,1.19772792]
[1633121023518,0.16678656,47956.0,47955.0,1.19772792]
[1633121023920,0.1562676,47956.0,47955.0,1.19772792]
[1633121024116,0.12048104,47956.0,47955.0,1.271207]
[1633121024320,0.09148104,47956.0,47955.0,1.246207]
[1633121024916,0.11748104,47956.0,47955.0,1.275207]
[1633121026121,0.11748104,47956.0,47955.0,0.933497]
[1633121026324,0.09148104,47956.0,47955.0,0.915197]
[1633121026788,0.11648104,47956.0,47955.0,0.943197]
[1633121027389,0.11648104,47956.0,47955.0,1.255943]
[1633121027588,0.36224744,47956.0,47955.0,1.255943]
[1633121027987,0.11648104,47956.0,47955.0,1.255943]
[1633121028188,0.09148104,47956.0,47955.0,1.227943]
[1633121028791,0.11548104,47956.0,47955.0,1.254943]
[1633121028989,0.15126767,47956.0,47955.0,1.25533351]
[1633121029195,0.15126767,47956.0,47955.0,0.94258751]
[1633121029589,0.11548104,47956.0,47955.0,0.94258751]
[1633121030189,0.09148104,47956.0,47955.0,0.91558751]
[1633121030790,0.11648104,47956.0,47955.0,0.94258751]
[1633121031193,0.34094188,47956.0,47955.0,0.94258751]
[1633121031393,0.34094188,47956.0,47955.0,0.72739051]
[1633121031594,0.34147198,47956.0,47955.0,0.02739051]
[1633121032194,0.52150029,47956.0,47955.0,0.00039051]
[1633121032793,0.55950029,47956.0,47955.0,0.00039051]
[1633121033191,0.87233029,47956.0,47955.0,0.00039051]
[1633121034191,0.83433029,47956.0,47955.0,0.00039051]
[1633121034395,0.87011699,47956.0,47955.0,0.00039051]
[1633121034591,1.97511699,47956.0,47955.0,0.00039051]
[1633121034793,2.00811699,47956.0,47955.0,0.00039051]
[1633121035191,1.97233029,47956.0,47955.0,0.00039051]
[1633121036391,1.97180019,47956.0,47955.0,0.00039051]
[1633121037391,0.86680019,47956.0,47955.0,0.00039051]
[1633121037593,0.55397019,47956.0,47955.0,0.00039051]
[1633121037792,0.34894188,47956.0,47955.0,0.00039051]
[1633121038194,0.12574188,47956.0,47955.0,0.00039051]
[1633121038393,0.09274188,47956.0,47955.0,0.00039051]
[1633121038794,0.12674188,47956.0,47955.0,0.00039051]
[1633121039195,0.12648104,47956.0,47955.0,0.01869051]
[1633121039596,0.12648104,47956.0,47955.0,0.93388751]
[1633121039992,0.1622678,47956.0,47955.0,0.93388751]
[1633121040191,0.1282678,47956.0,47955.0,0.93388751]
[1633121040791,0.09248104,47956.0,47955.0,0.93388751]
[1633121040994,0.11748104,47956.0,47955.0,0.96188751]
[1633121041394,0.11248104,47956.0,47955.0,0.96188751]
[1633121042200,0.08748104,47956.0,47955.0,0.93388751]
[1633121042995,0.11248104,47956.0,47955.0,0.96088751]
[1633121044197,0.08748104,47956.0,47955.0,0.93388751]
[1633121044997,0.08748104,47956.0,47955.0,0.96188751]
[1633121044998,0.11248104,47956.0,47955.0,0.96188751]
[1633121045200,0.14826787,47956.0,47955.0,0.96188751]
[1633121046199,0.11248104,47956.0,47955.0,1.27456151]
[1633121046398,0.08748104,47956.0,47955.0,1.24656151]
[1633121047000,0.11448104,47956.0,47955.0,1.27556151]
[1633121048001,0.11448104,47956.0,47955.0,1.27361351]
[1633121048198,0.08648104,47956.0,47955.0,1.24461351]
[1633121048997,0.11348104,47956.0,47955.0,1.27361351]
[1633121050200,0.11348104,47956.0,47955.0,1.27396497]
[1633121050598,0.08648104,47956.0,47955.0,1.24496497]
[1633121050800,0.12226794,47956.0,47955.0,1.24496497]
[1633121050999,0.14926794,47956.0,47955.0,1.27396497]
[1633121051698,0.11348104,47956.0,47955.0,1.27396497]
[1633121052100,0.04050687,47960.0,47955.0,1.27396497]
[1633121052101,0.04050687,47960.0,47956.0,2.4]
[1633121052301,0.04050687,47960.0,47959.0,2.61641311]
[1633121052504,1.04050687,47960.0,47959.0,0.38096367]
[1633121052701,1.04050687,47960.0,47959.0,0.48761044]
[1633121052900,1.04050687,47960.0,47959.0,0.30141344]
[1633121052901,1.06850687,47960.0,47959.0,0.30141344]
[1633121053100,1.06850687,47960.0,47959.0,0.029]
[1633121054503,1.04050687,47960.0,47958.0,0.43546182]
[1633121054702,1.04050687,47960.0,47959.0,1.1683]
[1633121054901,1.04050687,47960.0,47959.0,0.263497]
[1633121055105,1.04050687,47960.0,47959.0,0.0483]
[1633121055500,1.04050687,47960.0,47959.0,0.263497]
[1633121056104,1.04050687,47960.0,47959.0,0.245197]
[1633121056303,1.04103697,47960.0,47955.0,0.70035146]
[1633121056512,0.20831424,47956.0,47955.0,0.70035146]
[1633121056703,0.20902308,47956.0,47955.0,0.70035146]
[1633121056901,0.20902308,47956.0,47955.0,0.73135146]
[1633121058302,0.20902308,47956.0,47955.0,0.70035146]
[1633121058907,0.20902308,47956.0,47955.0,0.73735146]
[1633121059503,0.20849298,47956.0,47955.0,0.73735146]
[1633121060310,0.20849298,47956.0,47955.0,0.70035146]
[1633121061105,0.20849298,47956.0,47955.0,0.73635146]
[1633121061711,0.24428001,47956.0,47955.0,0.73635146]
[1633121062307,0.24428001,47956.0,47955.0,0.70035146]
[1633121062707,0.20849298,47956.0,47955.0,0.70035146]
[1633121062913,0.20849298,47956.0,47955.0,0.73835146]
[1633121063106,0.30849298,47956.0,47955.0,1.15531346]
[1633121063307,0.30849298,47956.0,47955.0,1.37051046]
[1633121064909,0.30849298,47956.0,47955.0,1.33251046]
[1633121065110,0.30849298,47956.0,47955.0,1.37051046]
[1633121066212,0.30849298,47956.0,47955.0,1.33251046]
[1633121066814,0.54387338,47956.0,47955.0,0.91554846]
[1633121067013,0.55268251,47956.0,47955.0,0.03435146]
[1633121067212,0.35308921,47956.0,47955.0,0.03435146]
[1633121068212,0.31730211,47956.0,47955.0,0.03435146]
[1633121068612,0.31030211,47956.0,47955.0,0.00035146]
[1633121069013,0.33630211,47956.0,47955.0,0.02935146]
[1633121070412,0.31030211,47956.0,47955.0,0.00035146]
[1633121071013,0.33477201,47956.0,47955.0,0.02835146]
[1633121071612,0.33530211,47956.0,47955.0,0.02835146]
[1633121071817,0.33477201,47956.0,47955.0,0.02835146]
[1633121072015,0.12617874,47956.0,47955.0,0.02835146]
[1633121072214,0.12617874,47956.0,47955.0,0.35940846]
[1633121072415,0.10117874,47956.0,47955.0,0.33140846]
[1633121072617,0.13696591,47956.0,47955.0,0.33140846]
[1633121073017,0.16296591,47956.0,47955.0,0.36140846]
[1633121073417,0.16296591,47956.0,47955.0,0.57660546]
[1633121073616,0.12717874,47956.0,47955.0,0.57660546]
[1633121073817,0.12717874,47956.0,47955.0,1.17660546]
[1633121074415,0.10117874,47956.0,47955.0,1.14660546]
[1633121075024,0.10117874,47956.0,47955.0,1.17910934]
[1633121075218,0.10017874,47956.0,47955.0,1.28910934]
[1633121075623,1.04050687,47960.0,47956.0,2.3]
[1633121075822,1.04050687,47960.0,47959.0,0.215197]
[1633121076017,1.04150687,47960.0,47959.0,0.26700192]
[1633121076219,1.04150687,47960.0,47959.0,0.0183]
[1633121076616,0.98650687,47960.0,47959.0,0.0183]
[1633121077018,0.98650687,47960.0,47959.0,0.0493]
[1633121078018,0.98650687,47960.0,47959.0,0.0688]
[1633121078420,0.98650687,47960.0,47959.0,0.0378]
[1633121079119,0.98703697,47960.0,47959.0,0.0525]
[1633121079717,1.18648243,47960.0,47959.0,0.0525]
[1633121080518,1.18648243,47960.0,47959.0,0.0195]
[1633121080721,1.18777261,47960.0,47959.0,0.0195]
[1633121081125,1.21277261,47960.0,47959.0,0.0465]
[1633121081320,1.43597261,47960.0,47959.0,0.0465]
[1633121081520,1.43722754,47960.0,47959.0,0.0465]
[1633121081722,1.7513305,47960.0,47959.0,0.0465]
[1633121082319,2.8313305,47960.0,47959.0,0.01984847]
[1633121082519,3.17382877,47960.0,47959.0,0.01984847]
[1633121083121,3.20382877,47960.0,47959.0,0.02984847]
[1633121084721,3.17382877,47960.0,47959.0,0.01984847]
[1633121084923,0.00033153,47959.0,47936.0,0.03706271]
[1633121085125,0.00127594,47943.0,47936.0,0.0008]
[1633121085322,0.00127594,47943.0,47937.0,0.215197]
[1633121085521,0.001,47938.0,47937.0,0.215197]
[1633121085923,0.001,47938.0,47937.0,0.21539965]
[1633121086123,0.001,47938.0,47937.0,0.81539965]
[1633121087023,0.019,47938.0,47937.0,0.84939965]
[1633121088026,0.019,47938.0,47937.0,0.80839965]
[1633121088624,0.001,47938.0,47937.0,0.76439965]
[1633121089025,0.03672112,47938.0,47937.0,0.80139965]
[1633121090227,0.001,47938.0,47937.0,0.80139965]
[1633121090425,0.001,47938.0,47937.0,0.76439965]
[1633121091025,0.24887839,47944.0,47937.0,0.80139965]
[1633121091225,0.24887839,47944.0,47940.0,0.312839]
[1633121091428,0.24887839,47944.0,47943.0,0.00013111]
[1633121091625,0.22049592,47945.0,47943.0,0.00013111]
[1633121092025,0.22049592,47945.0,47944.0,0.00011919]
[1633121092226,0.44695522,47945.0,47944.0,0.00011919]
[1633121092426,0.22049592,47945.0,47944.0,0.00011919]
[1633121093027,0.22049592,47945.0,47944.0,0.00044542]
[1633121093228,0.24649592,47945.0,47944.0,0.03044542]
[1633121093829,0.47151049,47945.0,47944.0,0.03044542]
[1633121094034,0.75344125,47945.0,47944.0,0.03044542]
[1633121094230,0.7891882,47945.0,47944.0,0.03044542]
[1633121094429,0.55816844,47945.0,47944.0,0.00044542]
[1633121094629,0.30896844,47945.0,47944.0,0.00044542]
[1633121095030,0.40896844,47945.0,47944.0,0.00044542]
[1633121095231,0.16856152,47945.0,47944.0,0.02444542]
[1633121095491,0.16803142,47945.0,47944.0,0.02444542]
[1633121095830,0.13228447,47945.0,47944.0,0.02444542]
[1633121096031,0.131,47945.0,47944.0,0.02444542]
[1633121096432,0.31356848,47945.0,47944.0,0.02444542]
[1633121096633,0.31356848,47945.0,47944.0,0.00044542]
[1633121096634,0.28256848,47945.0,47944.0,0.00044542]
[1633121097232,0.30856848,47945.0,47944.0,0.02044542]
[1633121097433,0.35947948,47945.0,47944.0,0.02044542]
[1633121098232,0.30803838,47945.0,47944.0,0.02044542]
[1633121098633,0.30856848,47945.0,47944.0,0.02044542]
[1633121099035,0.28203838,47945.0,47944.0,0.00044542]
[1633121099237,0.28203838,47945.0,47944.0,0.01944542]
[1633121099238,0.30703838,47945.0,47944.0,0.01944542]
[1633121099432,0.3427854,47945.0,47944.0,0.01944542]
[1633121100436,0.3177854,47945.0,47944.0,0.00044542]
[1633121101237,0.30703838,47945.0,47944.0,0.01944542]
[1633121101503,0.30824955,47945.0,47944.0,0.01944542]
[1633121101841,0.30877965,47945.0,47944.0,0.01944542]
[1633121102341,0.30824955,47945.0,47944.0,0.01944542]
[1633121102540,0.28324955,47945.0,47944.0,0.00044542]
[1633121103141,0.31324955,47945.0,47944.0,0.01244542]
[1633121103441,0.31377965,47945.0,47944.0,0.01244542]
[1633121103844,0.31324955,47945.0,47944.0,0.01244542]
[1633121104505,0.31324955,47945.0,47944.0,0.00044542]
[1633121104506,0.28324955,47945.0,47944.0,0.00044542]
[1633121105043,0.31952674,47945.0,47944.0,0.00044542]
[1633121105245,0.34752674,47945.0,47944.0,0.01344542]
[1633121106645,0.31177965,47945.0,47944.0,0.01344542]
[1633121106844,0.31124955,47945.0,47944.0,0.00044542]
[1633121107050,0.28324955,47945.0,47944.0,0.00044542]
[1633121107244,0.13421117,47945.0,47944.0,0.01044542]
[1633121107844,0.13474127,47945.0,47944.0,0.01044542]
[1633121108046,0.13421117,47945.0,47944.0,0.01044542]
[1633121108444,0.1,47945.0,47944.0,0.00044542]
[1633121108646,0.1005301,47945.0,47944.0,0.00044542]
[1633121109247,0.16427724,47945.0,47944.0,0.01344542]
[1633121109448,0.16374714,47945.0,47944.0,0.01344542]
[1633121109847,0.16417562,47945.0,47944.0,0.03762316]
[1633121110649,0.13617562,47945.0,47944.0,0.02462316]
[1633121111251,0.16670572,47945.0,47944.0,0.03362316]
[1633121111649,0.16617562,47945.0,47944.0,0.03362316]
[1633121112253,0.13042848,47945.0,47944.0,0.03362316]
[1633121112448,0.10042848,47945.0,47944.0,0.02462316]
[1633121113249,0.12942848,47945.0,47944.0,0.03162316]
[1633121114450,0.10163984,47945.0,47944.0,0.02462316]
[1633121114652,0.29956244,47945.0,47944.0,0.02462316]
[1633121114854,0.33530965,47945.0,47944.0,0.02462316]
[1633121115053,0.33583975,47945.0,47944.0,0.02462316]
[1633121115253,0.36383975,47945.0,47944.0,0.03162316]
[1633121115454,0.36330965,47945.0,47944.0,0.03162316]
[1633121116653,0.33530965,47945.0,47944.0,0.02462316]
[1633121117153,0.36330965,47945.0,47944.0,0.03062316]
[1633121117754,0.02414684,47944.0,47936.0,0.0004]
[1633121117957,0.00124477,47937.0,47936.0,0.0004]
[1633121118156,0.05268587,47937.0,47936.0,0.0004]
[1633121118358,0.05311435,47937.0,47936.0,0.00049537]
[1633121118756,0.05311435,47937.0,47936.0,0.00079695]
[1633121118958,0.27631435,47937.0,47936.0,0.00079695]
[1633121119155,0.31031435,47937.0,47936.0,0.00079695]
[1633121119755,0.53693609,47937.0,47936.0,0.00079695]
[1633121119962,0.55523609,47937.0,47936.0,0.00079695]
[1633121120159,0.59095391,47937.0,47936.0,0.00079695]
[1633121120461,0.55695391,47937.0,47936.0,0.00079695]
[1633121120660,0.10713217,47937.0,47936.0,0.00079695]
[1633121120861,0.05569107,47937.0,47936.0,0.00079695]
[1633121121060,0.35777611,47937.0,47936.0,0.00079695]
[1633121121263,0.62050621,47937.0,47936.0,0.00079695]
[1633121121459,0.36933217,47937.0,47936.0,0.00079695]
[1633121122530,0.55850137,47937.0,47936.0,0.00079695]
[1633121123062,0.33134037,47937.0,47936.0,0.00079695]
[1633121123261,0.32662255,47937.0,47936.0,0.00079695]
[1633121124263,0.32662255,47937.0,47936.0,0.00040695]
[1633121124264,0.54982255,47937.0,47936.0,0.00040695]
[1633121124466,0.66497255,47937.0,47936.0,0.00040695]
[1633121124663,0.44076435,47937.0,47936.0,0.00040695]
[1633121125068,1.54576435,47937.0,47936.0,0.00040695]
[1633121125265,1.35256435,47937.0,47936.0,0.00040695]
[1633121125522,1.57576435,47937.0,47936.0,0.00040695]
[1633121125866,1.61148224,47937.0,47936.0,0.00040695]
[1633121126465,1.58148224,47937.0,47936.0,0.00040695]
[1633121127266,1.61048224,47937.0,47936.0,0.00040695]
[1633121128868,1.58148224,47937.0,47936.0,0.00040695]
[1633121129068,1.54576435,47937.0,47936.0,0.00040695]
[1633121129268,1.57476435,47937.0,47936.0,0.00040695]
[1633121129669,1.57476435,47937.0,47905.0,1.7851109]
[1633121129869,1.57476435,47937.0,47898.0,0.939319]
[1633121129870,0.00121604,47927.0,47898.0,0.939319]
[1633121130069,0.17823776,47918.0,47898.0,0.879719]
[1633121130273,0.00042848,47912.0,47904.0,0.0582525]
[1633121130471,0.00042848,47912.0,47905.0,0.215619]
[1633121130870,0.00042848,47912.0,47908.0,0.417288]
[1633121131069,0.00042848,47912.0,47909.0,0.215619]
[1633121131268,0.0356148,47911.0,47909.0,0.215619]
[1633121131667,0.03497073,47911.0,47909.0,0.215619]
[1633121132670,0.03497073,47911.0,47905.0,0.035]
[1633121132873,0.03497073,47911.0,47906.0,0.03603907]
[1633121133071,0.22921851,47910.0,47906.0,0.03603907]
[1633121133269,0.22921851,47910.0,47907.0,0.03600866]
[1633121133471,0.22921851,47910.0,47908.0,0.03600264]
[1633121133670,0.05397073,47911.0,47905.0,0.033]
[1633121133872,0.22449596,47910.0,47906.0,0.03600929]
[1633121134075,0.22449596,47910.0,47907.0,0.03601155]
[1633121134272,0.22449596,47910.0,47898.0,0.0187]
[1633121134531,2.92700533,47910.0,47899.0,0.03601516]
[1633121134676,0.22449596,47910.0,47899.0,0.03601516]
[1633121134873,0.22449596,47910.0,47901.0,0.313086]
[1633121135075,0.22449596,47910.0,47902.0,0.03602412]
[1633121135478,0.22449596,47910.0,47901.0,0.0896711]
[1633121135673,0.00042848,47906.0,47900.0,0.00428913]
[1633121135877,0.00042848,47906.0,47901.0,0.03600771]
[1633121136072,0.00042848,47906.0,47903.0,0.2499]
[1633121136275,0.24104565,47904.0,47903.0,0.2499]
[1633121136479,0.26921458,47904.0,47903.0,0.2499]
[1633121136875,0.00126398,47904.0,47903.0,0.2499]
[1633121137078,0.10626,47905.0,47903.0,0.2499]
[1633121137277,0.025,47904.0,47903.0,0.2809]
[1633121138278,0.03693864,47906.0,47903.0,0.2499]
[1633121138479,0.03693864,47906.0,47903.0,0.562956]
[1633121138679,0.03693864,47906.0,47903.0,0.2499]
[1633121138880,0.03693864,47906.0,47898.0,0.11093697]
[1633121139079,0.24072798,47905.0,47898.0,0.11093697]
[1633121139479,0.23023347,47905.0,47898.0,0.11093697]
[1633121140279,0.23023347,47905.0,47899.0,1.15428944]
[1633121140540,0.23023347,47905.0,47899.0,0.00428944]
[1633121140685,0.00123024,47906.0,47899.0,0.00459136]
[1633121140881,0.00042848,47902.0,47899.0,0.00459136]
[1633121141284,0.00042848,47902.0,47899.0,0.03859136]
[1633121141482,0.00042848,47902.0,47899.0,1.73859136]
[1633121141683,0.00042848,47902.0,47899.0,2.43859136]
[1633121141884,0.00042848,47902.0,47899.0,1.93859136]
[1633121142283,0.00042848,47902.0,47899.0,2.43430192]
[1633121142284,0.0352634,47901.0,47899.0,2.43430192]
[1633121142483,0.0352634,47901.0,47899.0,1.93430192]
[1633121142685,0.0352634,47901.0,47899.0,2.40030192]
[1633121143083,0.0352634,47901.0,47899.0,1.90030192]
[1633121143286,0.0352634,47901.0,47899.0,1.93830192]
[1633121143543,0.0352634,47901.0,47899.0,2.43830192]
[1633121143684,0.0352634,47901.0,47899.0,0.03830192]
[1633121144486,0.0352634,47901.0,47900.0,0.3164516]
[1633121144685,0.0352634,47901.0,47900.0,2.7164516]
[1633121144888,0.16438156,47909.0,47908.0,0.10192419]
[1633121145088,0.1,47910.0,47908.0,0.10192419]
[1633121145689,0.1,47910.0,47908.0,0.313023]
[1633121145891,0.1,47910.0,47909.0,0.02015723]
[1633121147289,0.126,47910.0,47909.0,0.02015723]
[1633121147687,0.126,47910.0,47908.0,0.313023]
[1633121147888,0.14366679,47910.0,47908.0,0.313023]
[1633121148492,0.14366679,47910.0,47905.0,0.01099993]
[1633121148887,0.14366679,47910.0,47905.0,0.31305]
[1633121150490,0.11766679,47910.0,47905.0,0.31305]
[1633121150692,0.48060346,47910.0,47905.0,0.31305]
[1633121151291,0.48893667,47910.0,47906.0,0.0204602]
[1633121151490,0.48893667,47910.0,47908.0,0.313029]
[1633121152492,0.46293667,47910.0,47908.0,0.313029]
[1633121153293,0.50660169,47910.0,47908.0,0.313029]
[1633121154895,0.14366502,47910.0,47908.0,0.313029]
[1633121155095,0.11766502,47910.0,47908.0,0.313029]
[1633121155292,0.14366502,47910.0,47908.0,0.313029]
[1633121156696,0.1,47910.0,47908.0,0.313029]
[1633121156894,0.1,47910.0,47909.0,0.02015723]
[1633121157298,0.126,47910.0,47909.0,0.04435085]
[1633121158695,0.11766693,47910.0,47909.0,0.02419362]
[1633121159297,0.14366693,47910.0,47909.0,0.02419362]
[1633121160700,0.11766693,47910.0,47909.0,0.02419362]
[1633121161103,0.11766693,47910.0,47909.0,0.13962908]
[1633121161305,0.5549,47925.0,47916.0,1.22726043]
[1633121161575,2.0986,47933.0,47917.0,0.36497972]
[1633121161702,2.0986,47933.0,47917.0,0.04249221]
[1633121161703,0.9993,47933.0,47917.0,0.04249221]
[1633121161901,0.9993,47933.0,47918.0,0.38249788]
[1633121162102,0.9993,47933.0,47927.0,0.1140689]
[1633121162303,1.301,47936.0,47928.0,0.02418832]
[1633121162502,1.301,47936.0,47929.0,0.0183]
[1633121162700,1.09225443,47936.0,47929.0,0.30775462]
[1633121162899,1.09225443,47936.0,47929.0,0.0183]
[1633121163298,1.09225443,47936.0,47929.0,0.463457]
[1633121163299,1.11625443,47936.0,47929.0,0.463457]
[1633121163501,1.11625443,47936.0,47930.0,0.29672873]
[1633121163702,0.5718,47936.0,47931.0,0.0183]
[1633121163903,0.2232,47934.0,47929.0,0.028]
[1633121164106,0.5718,47936.0,47929.0,0.028]
[1633121164107,0.50248499,47930.0,47929.0,0.028]
[1633121164301,0.71758009,47930.0,47929.0,0.028]
[1633121164704,0.2122174,47918.0,47917.0,0.00038726]
[1633121164901,0.00129534,47918.0,47917.0,0.02457839]
[1633121165304,0.00129534,47918.0,47917.0,0.05757839]
[1633121165501,0.00129534,47918.0,47917.0,0.03338726]
[1633121165903,0.00182544,47918.0,47917.0,0.03338726]
[1633121166103,0.00129534,47918.0,47917.0,0.03338726]
[1633121166301,0.40258617,47918.0,47917.0,0.03338726]
[1633121166711,0.61413151,47918.0,47917.0,0.03338726]
[1633121166907,0.61413151,47918.0,47917.0,0.00038726]
[1633121167305,1.86533151,47918.0,47917.0,0.00038726]
[1633121167574,0.24815106,47918.0,47917.0,0.00038726]
[1633121167707,0.028,47918.0,47917.0,0.24848197]
[1633121168005,0.028,47918.0,47917.0,0.0293444]
[1633121168006,0.02928374,47918.0,47917.0,0.0293444]
[1633121168205,2.4,47917.0,47898.0,0.0004]
[1633121168407,1.6183163,47917.0,47898.0,0.0004]
[1633121168603,2.14459355,47917.0,47898.0,0.0004]
[1633121168806,3.16289355,47917.0,47916.0,0.5544664]
[1633121169005,0.00252095,47904.0,47898.0,0.0004]
[1633121169205,0.00129021,47899.0,47898.0,0.0004]
[1633121169409,0.44028221,47899.0,47898.0,0.0004]
[1633121169604,0.73187414,47899.0,47898.0,0.0004]
[1633121169804,0.77397401,47899.0,47898.0,0.0004]
[1633121171006,0.48238208,47899.0,47898.0,0.0004]
[1633121171405,0.51338208,47899.0,47898.0,0.0004]
[1633121171805,0.75937496,47899.0,47898.0,0.0004]
[1633121172010,0.51338208,47899.0,47898.0,0.0004]
[1633121172406,0.76362725,47899.0,47898.0,0.0004]
[1633121172607,0.51338208,47899.0,47898.0,0.0004]
[1633121172806,0.48238208,47899.0,47898.0,0.0004]
[1633121173210,0.45911231,47899.0,47898.0,0.01496137]
[1633121173407,1.34311231,47899.0,47898.0,0.01533249]
[1633121173807,0.49311231,47899.0,47898.0,0.01533249]
[1633121174410,0.26991231,47899.0,47898.0,0.01533249]
[1633121174612,1.59811231,47899.0,47898.0,0.01533249]
[1633121175009,1.56411231,47899.0,47898.0,0.01533249]
[1633121175208,1.56411231,47899.0,47898.0,0.00077112]
[1633121175408,1.62138215,47899.0,47898.0,0.00077112]
[1633121175810,1.39818215,47899.0,47898.0,0.00077112]
[1633121176410,1.62138215,47899.0,47898.0,0.00077112]
[1633121176671,0.51638215,47899.0,47898.0,0.00077112]
[1633121177072,1.62138215,47899.0,47898.0,0.00077112]
[1633121177276,0.25918215,47899.0,47898.0,0.00077112]
[1633121177471,1.0,47898.0,47894.0,0.00089344]
[1633121177672,0.00122584,47896.0,47892.0,0.1798]
[1633121177876,0.00122584,47896.0,47892.0,0.17269344]
[1633121177877,0.215792,47895.0,47892.0,0.17269344]
[1633121178073,0.00122584,47896.0,47892.0,0.17269344]
[1633121178871,0.24874245,47895.0,47893.0,0.01458153]
[1633121179472,0.27874245,47895.0,47893.0,0.01458153]
[1633121180371,0.03,47895.0,47893.0,0.01458153]
[1633121180773,0.02325331,47894.0,47889.0,0.0012]
[1633121181173,0.02325331,47894.0,47884.0,0.0199]
[1633121181373,0.33428954,47892.0,47884.0,0.0199]
[1633121182176,0.24362638,47891.0,47888.0,0.09230271]
[1633121182481,0.04325331,47894.0,47889.0,0.0183]
[1633121182675,0.02325331,47894.0,47889.0,0.0183]
[1633121182875,0.02325331,47894.0,47889.0,0.33143]
[1633121183475,0.04225331,47894.0,47889.0,0.33143]
[1633121183878,0.04225331,47894.0,47890.0,0.4576]
[1633121184079,0.04225331,47894.0,47891.0,0.0183]
[1633121184276,0.019,47894.0,47891.0,0.04249719]
[1633121184476,0.019,47894.0,47893.0,2.4175]
[1633121184676,0.21653748,47907.0,47893.0,2.4599978]
[1633121184878,0.33793787,47909.0,47894.0,0.208719]
[1633121185083,0.33793787,47909.0,47900.0,0.313078]
[1633121185278,0.33793787,47909.0,47901.0,0.0183]
[1633121185481,0.36493787,47909.0,47901.0,0.0183]
[1633121185882,0.17757609,47906.0,47901.0,0.0183]
[1633121186078,0.17757609,47906.0,47901.0,0.13018843]
[1633121186278,0.02329394,47908.0,47903.0,0.313056]
[1633121186478,0.02329394,47908.0,47904.0,0.0183]
[1633121187478,0.05229394,47908.0,47905.0,0.313044]
[1633121187787,0.05229394,47908.0,47906.0,0.0183]
[1633121187980,0.02329394,47908.0,47906.0,0.0183]
[1633121188380,0.02329394,47908.0,47906.0,0.28561809]
[1633121188586,0.02329394,47908.0,47907.0,2.66903902]
[1633121188782,0.02329394,47908.0,47907.0,2.68733902]
[1633121188982,0.02329394,47908.0,47907.0,3.14493902]
[1633121189181,0.02329394,47908.0,47907.0,4.25250828]
[1633121189379,0.02329394,47908.0,47907.0,3.18550828]
[1633121189580,3.94e-06,47908.0,47907.0,3.18550828]
[1633121189779,0.21392067,47930.0,47915.0,0.02086166]
[1633121189984,0.21392067,47930.0,47917.0,0.208616]
[1633121190182,0.0005301,47929.0,47918.0,0.31346668]
[1633121190383,0.21392067,47930.0,47918.0,0.31346668]
[1633121190384,0.21445077,47930.0,47918.0,0.31346668]
[1633121190781,0.00175501,47931.0,47920.0,0.12374401]
[1633121190981,1.60927476,47936.0,47924.0,0.312905]
[1633121191183,0.00127885,47938.0,47925.0,0.35129792]
[1633121191385,0.036,47931.0,47926.0,0.0183]
[1633121191582,0.036,47931.0,47927.0,0.0183]
[1633121191784,0.036,47931.0,47928.0,0.0183]
[1633121191984,0.036,47931.0,47929.0,0.28198265]
[1633121192183,0.036,47931.0,47930.0,0.26234079]
[1633121192384,0.036,47931.0,47930.0,0.28064079]
[1633121192784,0.01174298,47935.0,47930.0,0.28064079]
[1633121193383,0.04874298,47935.0,47932.0,0.312826]
[1633121193583,0.04874298,47935.0,47933.0,0.27458097]
[1633121193783,0.04874298,47935.0,47933.0,0.0183]
[1633121193984,7.146e-05,47934.0,47933.0,0.27375063]
[1633121194185,7.146e-05,47934.0,47933.0,0.0183]
[1633121194587,7.146e-05,47934.0,47933.0,0.01870791]
[1633121194983,7.146e-05,47934.0,47933.0,0.26859278]
[1633121195384,0.04107146,47934.0,47933.0,0.29927591]
[1633121195785,0.04107146,47934.0,47933.0,0.04475767]
[1633121195984,0.04107146,47934.0,47933.0,0.294576]
[1633121196187,0.04107146,47934.0,47933.0,0.04475767]
[1633121196787,0.04107146,47934.0,47933.0,0.3160623]
[1633121197186,0.04107146,47934.0,47933.0,0.29001254]
[1633121197386,0.01182556,47934.0,47933.0,0.01870791]
[1633121197585,0.01182556,47934.0,47933.0,0.04870791]
[1633121197586,0.03482556,47934.0,47933.0,0.04870791]
[1633121197787,0.05482556,47934.0,47933.0,0.67233674]
[1633121197986,0.05482556,47934.0,47933.0,0.39463948]
[1633121198588,0.02866041,47945.0,47933.0,2.24463948]
[1633121198786,0.25079619,47949.0,47933.0,0.36463948]
[1633121198787,0.00121839,47949.0,47933.0,0.36463948]
[1633121198987,0.00121839,47949.0,47934.0,0.29687327]
[1633121199189,0.00121839,47949.0,47935.0,0.0183]
[1633121199392,0.9657,47959.0,47940.0,0.45887861]
[1633121199591,0.039,47949.0,47946.0,0.45881302]
[1633121199791,0.039,47949.0,47947.0,0.76461302]
[1633121199988,0.9906576,47960.0,47948.0,3.44259384]
[1633121200189,0.9906576,47960.0,47949.0,0.0183]
[1633121200695,0.00019068,47950.0,47949.0,0.0183]
[1633121200893,0.00019068,47950.0,47949.0,0.28006046]
[1633121201089,0.00019068,47950.0,47949.0,4.20195446]
[1633121201490,0.00019068,47950.0,47949.0,4.23695446]
[1633121201689,0.00019068,47950.0,47949.0,4.34695446]
[1633121202091,0.91674828,47960.0,47950.0,2.4]
[1633121202291,0.91674828,47960.0,47953.0,0.208433]
[1633121202493,0.91674828,47960.0,47954.0,0.2683937]
[1633121202692,0.00596362,47959.0,47954.0,0.2683937]
[1633121202890,0.00596362,47959.0,47954.0,0.0183]
[1633121203492,0.00596362,47959.0,47956.0,0.312683]
[1633121203493,0.00096362,47959.0,47956.0,0.312683]
[1633121203689,0.00096362,47959.0,47957.0,0.28318574]
[1633121204093,0.00096362,47959.0,47957.0,0.60315602]
[1633121204291,0.00096362,47959.0,47958.0,0.25277488]
[1633121204491,0.00096362,47959.0,47958.0,0.27107488]
[1633121204690,0.00107085,47959.0,47958.0,0.27107488]
[1633121205090,0.00107085,47959.0,47958.0,0.68831704]
[1633121205491,0.00107085,47959.0,47958.0,0.72131704]
[1633121206291,0.02010723,47959.0,47958.0,0.33877613]
[1633121206692,0.72827338,47960.0,47958.0,0.05300125]
[1633121206892,0.72827338,47960.0,47958.0,0.29950449]
[1633121207093,0.05128157,47960.0,47959.0,2.64809626]
[1633121207397,1.57e-06,47960.0,47959.0,3.69456924]
[1633121207593,1.57e-06,47960.0,47959.0,4.79956924]
[1633121207794,1.57e-06,47960.0,47959.0,4.43154117]
[1633121207993,0.00353015,47960.0,47959.0,4.43154117]
[1633121208793,0.00353015,47960.0,47959.0,2.03154117]
[1633121208997,0.00353015,47960.0,47959.0,1.99146499]